[Event "*** SCC Grand Prix: Titled Tuesday Blitz"]
[Site "Chess.com"]
[Date "2020.08.25"]
[Round "3"]
[White "Jabberwockiez"]
[Black "pedro_nascimento85"]
[Result "1-0"]
[WhiteElo "2255"]
[BlackElo "1942"]
[TimeControl "180+1"]
[EndTime "10:25:39 PDT"]
[Termination "Jabberwockiez won by resignation"]

1. e4 {[%clk 0:03:00.9]} 1... e6 {[%clk 0:02:59.6]} 2. d4 {[%clk 0:03:00.8]}
2... d5 {[%clk 0:02:58.8]} 3. Nc3 {[%clk 0:03:01.1]} 3... Bb4 {[%clk 0:02:58]}
4. exd5 {[%clk 0:03:00.9]} 4... exd5 {[%clk 0:02:57]} 5. Bd3 {[%clk 0:03:01.8]}
5... Ne7 {[%clk 0:02:55.5]} 6. Nf3 {[%clk 0:03:01.5]} 6... Nbc6 {[%clk
0:02:55.8]} 7. O-O {[%clk 0:03:01.6]} 7... Bg4 {[%clk 0:02:55.3]} 8. h3 {[%clk
0:03:00.8]} 8... Bh5 {[%clk 0:02:54.8]} 9. g4 {[%clk 0:02:56.7]} 9... Bg6 {[%clk
0:02:53.5]} 10. a3 {[%clk 0:02:55.9]} 10... Bxc3 {[%clk 0:02:51]} 11. bxc3
{[%clk 0:02:56.8]} 11... O-O {[%clk 0:02:47.4]} 12. Re1 {[%clk 0:02:54.9]} 12...
Bxd3 {[%clk 0:02:44.1]} 13. Qxd3 {[%clk 0:02:55.8]} 13... Ng6 {[%clk 0:02:44.5]}
14. Ng5 {[%clk 0:02:53.9]} 14... Qd6 {[%clk 0:02:39.2]} 15. h4 {[%clk
0:02:53.2]} 15... h6 {[%clk 0:02:38.1]} 16. h5 {[%clk 0:02:52.7]} 16... hxg5
{[%clk 0:02:36]} 17. hxg6 {[%clk 0:02:52.9]} 17... fxg6 {[%clk 0:02:36]} 18.
Bxg5 {[%clk 0:02:52.3]} 18... Rf7 {[%clk 0:02:30.7]} 19. Qh3 {[%clk 0:02:45.7]}
19... Raf8 {[%clk 0:02:25.4]} 20. f4 {[%clk 0:02:45.5]} 20... Nd8 {[%clk
0:02:14.7]} 21. Re2 {[%clk 0:02:44.7]} 21... Rxf4 {[%clk 0:02:05]} 22. Rh2
{[%clk 0:02:35.6]} 22... Kf7 {[%clk 0:01:54]} 23. Bxf4 {[%clk 0:02:34.4]} 23...
Qxf4 {[%clk 0:01:53.2]} 24. Rf2 {[%clk 0:02:34.2]} 1-0

[Event "*** SCC Grand Prix: Titled Tuesday Blitz"]
[Site "Chess.com"]
[Date "2020.08.25"]
[Round "3"]
[White "AttackSparrow"]
[Black "Sashadav97"]
[Result "1-0"]
[WhiteElo "2373"]
[BlackElo "2537"]
[TimeControl "180+1"]
[EndTime "10:26:26 PDT"]
[Termination "AttackSparrow won by resignation"]

1. e4 {[%clk 0:03:00.9]} 1... c5 {[%clk 0:02:59.6]} 2. c3 {[%clk 0:03:00.4]}
2... d6 {[%clk 0:02:58]} 3. d4 {[%clk 0:03:00.1]} 3... Nf6 {[%clk 0:02:58.6]} 4.
Bd3 {[%clk 0:02:59.4]} 4... g6 {[%clk 0:02:56.4]} 5. dxc5 {[%clk 0:02:57.7]}
5... dxc5 {[%clk 0:02:54.7]} 6. e5 {[%clk 0:02:58]} 6... Nd5 {[%clk 0:02:51.8]}
7. Be4 {[%clk 0:02:57.6]} 7... e6 {[%clk 0:02:47.9]} 8. c4 {[%clk 0:02:55.8]}
8... Nb4 {[%clk 0:02:46.8]} 9. Qxd8+ {[%clk 0:02:55.1]} 9... Kxd8 {[%clk
0:02:47.7]} 10. Nc3 {[%clk 0:02:35]} 10... a6 {[%clk 0:02:44.9]} 11. Bg5+ {[%clk
0:02:31.5]} 11... Kc7 {[%clk 0:02:37.3]} 12. O-O-O {[%clk 0:02:28.7]} 12... N4c6
{[%clk 0:02:37.3]} 13. Nf3 {[%clk 0:02:20.5]} 13... h6 {[%clk 0:02:35.8]} 14.
Bf6 {[%clk 0:02:19.9]} 14... Rg8 {[%clk 0:02:36]} 15. Rd2 {[%clk 0:02:18.9]}
15... Nd7 {[%clk 0:02:33.6]} 16. Bxc6 {[%clk 0:02:13.1]} 16... bxc6 {[%clk
0:02:16.7]} 17. Rhd1 {[%clk 0:02:11.1]} 17... Nxf6 {[%clk 0:02:09.9]} 18. exf6
{[%clk 0:02:12]} 18... h5 {[%clk 0:02:08.4]} 19. h4 {[%clk 0:02:07.9]} 19... e5
{[%clk 0:02:08.5]} 20. Nxe5 {[%clk 0:01:47.3]} 20... Bh6 {[%clk 0:01:58.9]} 21.
Nxf7 {[%clk 0:01:46.5]} 21... Bxd2+ {[%clk 0:01:59]} 22. Rxd2 {[%clk 0:01:47.4]}
22... Rf8 {[%clk 0:01:59.4]} 23. Nd6 {[%clk 0:01:44.4]} 23... Rxf6 {[%clk
0:01:59.1]} 24. Ne8+ {[%clk 0:01:43.4]} 1-0

[Event "*** SCC Grand Prix: Titled Tuesday Blitz"]
[Site "Chess.com"]
[Date "2020.08.25"]
[Round "3"]
[White "politeplayer"]
[Black "SlavenPastar"]
[Result "0-1"]
[WhiteElo "2205"]
[BlackElo "2439"]
[TimeControl "180+1"]
[EndTime "10:26:49 PDT"]
[Termination "SlavenPastar won by resignation"]

1. e4 {[%clk 0:03:00.9]} 1... b6 {[%clk 0:03:00]} 2. d4 {[%clk 0:02:59.4]} 2...
Bb7 {[%clk 0:03:00.5]} 3. Bd3 {[%clk 0:02:59.3]} 3... Nf6 {[%clk 0:03:00.9]} 4.
Qe2 {[%clk 0:02:58.2]} 4... e6 {[%clk 0:03:01.2]} 5. Bg5 {[%clk 0:02:56.4]} 5...
Be7 {[%clk 0:02:55.9]} 6. Nf3 {[%clk 0:02:54.2]} 6... d5 {[%clk 0:02:55.7]} 7.
e5 {[%clk 0:02:52.3]} 7... Ne4 {[%clk 0:02:56.1]} 8. Bxe7 {[%clk 0:02:49.1]}
8... Qxe7 {[%clk 0:02:57]} 9. Nbd2 {[%clk 0:02:47.6]} 9... Nxd2 {[%clk
0:02:53.6]} 10. Nxd2 {[%clk 0:02:46.2]} 10... Qb4 {[%clk 0:02:49.9]} 11. Qg4
{[%clk 0:02:38.5]} 11... O-O {[%clk 0:02:42.2]} 12. Qh5 {[%clk 0:02:17.7]} 12...
h6 {[%clk 0:02:34.5]} 13. O-O {[%clk 0:01:37.2]} 13... Qxd2 {[%clk 0:02:32.1]}
14. f4 {[%clk 0:01:36.4]} 14... Ba6 {[%clk 0:02:23.8]} 15. Bxa6 {[%clk
0:01:23.5]} 15... Nxa6 {[%clk 0:02:23.4]} 16. Rad1 {[%clk 0:01:11.2]} 16... Qxc2
{[%clk 0:02:22.9]} 17. f5 {[%clk 0:01:10]} 17... exf5 {[%clk 0:02:22.5]} 18.
Rxf5 {[%clk 0:01:07.7]} 18... g6 {[%clk 0:02:15.6]} 19. Qxh6 {[%clk 0:01:01.8]}
19... Qxd1+ {[%clk 0:02:09]} 20. Rf1 {[%clk 0:01:00.8]} 20... Qxd4+ {[%clk
0:02:08.5]} 21. Kh1 {[%clk 0:01:00.7]} 21... Qxe5 {[%clk 0:02:08.5]} 0-1

[Event "*** SCC Grand Prix: Titled Tuesday Blitz"]
[Site "Chess.com"]
[Date "2020.08.25"]
[Round "3"]
[White "Region_07"]
[Black "ruslansezdbekov"]
[Result "1/2-1/2"]
[WhiteElo "2383"]
[BlackElo "2559"]
[TimeControl "180+1"]
[EndTime "10:26:59 PDT"]
[Termination "Game drawn by agreement"]

1. e4 {[%clk 0:03:00.9]} 1... c5 {[%clk 0:02:59.3]} 2. Nf3 {[%clk 0:02:59.6]}
2... d6 {[%clk 0:02:58]} 3. Nc3 {[%clk 0:02:58.6]} 3... Nf6 {[%clk 0:02:57.1]}
4. e5 {[%clk 0:02:58.9]} 4... dxe5 {[%clk 0:02:53.9]} 5. Nxe5 {[%clk 0:02:59.8]}
5... a6 {[%clk 0:02:41.6]} 6. a4 {[%clk 0:02:57]} 6... e6 {[%clk 0:02:39.4]} 7.
g3 {[%clk 0:02:54.1]} 7... Be7 {[%clk 0:02:33.7]} 8. Bg2 {[%clk 0:02:53.5]} 8...
O-O {[%clk 0:02:33]} 9. O-O {[%clk 0:02:53.5]} 9... Nbd7 {[%clk 0:02:31]} 10.
Nc4 {[%clk 0:02:53.4]} 10... Nb6 {[%clk 0:02:26.7]} 11. Nxb6 {[%clk 0:02:34.6]}
11... Qxb6 {[%clk 0:02:27.4]} 12. a5 {[%clk 0:02:35.2]} 12... Qc7 {[%clk
0:02:18.3]} 13. d3 {[%clk 0:02:35.1]} 13... Bd7 {[%clk 0:02:16.7]} 14. Re1
{[%clk 0:02:31.6]} 14... Bc6 {[%clk 0:02:14.7]} 15. Bf4 {[%clk 0:02:27.7]} 15...
Bd6 {[%clk 0:02:11.9]} 16. Bxd6 {[%clk 0:02:25.6]} 16... Qxd6 {[%clk 0:02:12.7]}
17. Ne4 {[%clk 0:02:13.3]} 17... Nxe4 {[%clk 0:02:05.2]} 18. Bxe4 {[%clk
0:02:11.9]} 18... Rfd8 {[%clk 0:01:36.2]} 19. Qf3 {[%clk 0:02:07.3]} 19... Rac8
{[%clk 0:01:30.6]} 20. Bxc6 {[%clk 0:01:43.9]} 20... Qxc6 {[%clk 0:01:31.5]} 21.
Qxc6 {[%clk 0:01:41.7]} 21... Rxc6 {[%clk 0:01:32.4]} 22. Re4 {[%clk 0:01:38.3]}
1/2-1/2

[Event "*** SCC Grand Prix: Titled Tuesday Blitz"]
[Site "Chess.com"]
[Date "2020.08.25"]
[Round "3"]
[White "ShadowJolteon"]
[Black "TigrVShlyape"]
[Result "1/2-1/2"]
[WhiteElo "2455"]
[BlackElo "2840"]
[TimeControl "180+1"]
[EndTime "10:27:05 PDT"]
[Termination "Game drawn by agreement"]

1. d4 {[%clk 0:03:00.9]} 1... Nf6 {[%clk 0:02:58.7]} 2. c4 {[%clk 0:02:59.8]}
2... g6 {[%clk 0:02:59]} 3. Nc3 {[%clk 0:02:52.6]} 3... Bg7 {[%clk 0:02:59.3]}
4. e4 {[%clk 0:02:52.6]} 4... d6 {[%clk 0:02:55.9]} 5. f3 {[%clk 0:02:52.8]}
5... Nbd7 {[%clk 0:02:51.9]} 6. Be3 {[%clk 0:02:52.6]} 6... a6 {[%clk
0:02:48.6]} 7. Nge2 {[%clk 0:02:52.3]} 7... b5 {[%clk 0:02:48.2]} 8. cxb5 {[%clk
0:02:47.7]} 8... axb5 {[%clk 0:02:48.4]} 9. Nxb5 {[%clk 0:02:48.6]} 9... c6
{[%clk 0:02:48.3]} 10. Nbc3 {[%clk 0:02:48]} 10... O-O {[%clk 0:02:44.2]} 11.
Ng3 {[%clk 0:02:46.9]} 11... e5 {[%clk 0:02:43.4]} 12. dxe5 {[%clk 0:02:45.6]}
12... Nxe5 {[%clk 0:02:42.6]} 13. Be2 {[%clk 0:02:44.3]} 13... Ba6 {[%clk
0:02:12.2]} 14. O-O {[%clk 0:02:42.4]} 14... d5 {[%clk 0:02:10.4]} 15. exd5
{[%clk 0:02:38.7]} 15... Nxd5 {[%clk 0:02:04.1]} 16. Nxd5 {[%clk 0:02:27.5]}
16... Qxd5 {[%clk 0:02:02.4]} 17. Qc2 {[%clk 0:02:05.7]} 17... Bxe2 {[%clk
0:01:55.2]} 18. Nxe2 {[%clk 0:02:06.6]} 18... Nc4 {[%clk 0:01:53.5]} 19. Bc1
{[%clk 0:02:06.3]} 19... Rfb8 {[%clk 0:01:46.5]} 20. Nc3 {[%clk 0:01:53.6]}
20... Qd4+ {[%clk 0:01:24.3]} 21. Kh1 {[%clk 0:01:53.4]} 21... Ne3 {[%clk
0:01:16]} 22. Bxe3 {[%clk 0:01:52.7]} 22... Qxe3 {[%clk 0:01:16.4]} 23. Rfe1
{[%clk 0:01:45.2]} 1/2-1/2

[Event "*** SCC Grand Prix: Titled Tuesday Blitz"]
[Site "Chess.com"]
[Date "2020.08.25"]
[Round "3"]
[White "BjarkeSahl"]
[Black "ZenBull"]
[Result "1-0"]
[WhiteElo "2322"]
[BlackElo "2098"]
[TimeControl "180+1"]
[EndTime "10:27:32 PDT"]
[Termination "BjarkeSahl won by resignation"]

1. e4 {[%clk 0:03:00.9]} 1... c5 {[%clk 0:02:59.6]} 2. Nf3 {[%clk 0:03:00.1]}
2... e6 {[%clk 0:03:00]} 3. d4 {[%clk 0:03:00.3]} 3... cxd4 {[%clk 0:02:59.2]}
4. Nxd4 {[%clk 0:03:00.6]} 4... Nc6 {[%clk 0:03:00.1]} 5. Nc3 {[%clk 0:03:00.6]}
5... Qc7 {[%clk 0:03:00.5]} 6. g3 {[%clk 0:02:59.8]} 6... a6 {[%clk 0:02:59.8]}
7. Bg2 {[%clk 0:02:59.6]} 7... d6 {[%clk 0:02:57.6]} 8. O-O {[%clk 0:02:58.8]}
8... Bd7 {[%clk 0:02:57.4]} 9. Be3 {[%clk 0:02:58.3]} 9... Be7 {[%clk
0:02:51.7]} 10. Qe2 {[%clk 0:02:48.6]} 10... Nxd4 {[%clk 0:02:49.7]} 11. Bxd4
{[%clk 0:02:47.2]} 11... Nf6 {[%clk 0:02:48.9]} 12. Rad1 {[%clk 0:02:44.8]}
12... Bc6 {[%clk 0:02:48.9]} 13. e5 {[%clk 0:02:38.4]} 13... dxe5 {[%clk
0:02:45]} 14. Bxe5 {[%clk 0:02:38.6]} 14... Qc8 {[%clk 0:02:42.8]} 15. Ne4
{[%clk 0:02:35.4]} 15... Nxe4 {[%clk 0:02:32.5]} 16. Bxe4 {[%clk 0:02:28]} 16...
O-O {[%clk 0:02:21.2]} 17. Qg4 {[%clk 0:01:51.8]} 17... g6 {[%clk 0:02:06]} 18.
Bd3 {[%clk 0:01:51.6]} 18... Rd8 {[%clk 0:01:55.5]} 19. Rde1 {[%clk 0:01:36.6]}
19... Qd7 {[%clk 0:01:41.1]} 20. Bc3 {[%clk 0:01:32.3]} 20... Qe8 {[%clk
0:01:34.5]} 21. h4 {[%clk 0:01:30.8]} 21... h5 {[%clk 0:01:26.3]} 22. Qf4 {[%clk
0:01:27.2]} 22... Qf8 {[%clk 0:01:23.7]} 23. Qe5 {[%clk 0:01:19]} 23... Kh7
{[%clk 0:01:20.4]} 24. Qxh5+ {[%clk 0:01:16.4]} 1-0

[Event "*** SCC Grand Prix: Titled Tuesday Blitz"]
[Site "Chess.com"]
[Date "2020.08.25"]
[Round "3"]
[White "GAusal"]
[Black "Irishchessman16"]
[Result "1-0"]
[WhiteElo "2161"]
[BlackElo "2347"]
[TimeControl "180+1"]
[EndTime "10:27:41 PDT"]
[Termination "GAusal won by resignation"]

1. e4 {[%clk 0:03:00.9]} 1... e5 {[%clk 0:02:58.2]} 2. f4 {[%clk 0:03:01.2]}
2... d5 {[%clk 0:02:55.6]} 3. Nf3 {[%clk 0:03:01.7]} 3... exf4 {[%clk
0:02:53.2]} 4. e5 {[%clk 0:02:57.9]} 4... c5 {[%clk 0:02:47.3]} 5. Nc3 {[%clk
0:02:54.4]} 5... d4 {[%clk 0:02:40.6]} 6. Ne4 {[%clk 0:02:51.4]} 6... Bf5 {[%clk
0:02:38.7]} 7. Bb5+ {[%clk 0:02:47.1]} 7... Nc6 {[%clk 0:02:37.5]} 8. Bxc6+
{[%clk 0:02:42.1]} 8... bxc6 {[%clk 0:02:36.4]} 9. Qe2 {[%clk 0:02:39.5]} 9...
h6 {[%clk 0:02:15.5]} 10. d3 {[%clk 0:02:35.3]} 10... g5 {[%clk 0:02:12.7]} 11.
Nd6+ {[%clk 0:02:31.3]} 11... Bxd6 {[%clk 0:02:10.9]} 12. exd6+ {[%clk
0:02:27.7]} 12... Kf8 {[%clk 0:02:00.6]} 13. Qe5 {[%clk 0:02:27.3]} 13... Qe8
{[%clk 0:01:56.1]} 14. O-O {[%clk 0:02:21.4]} 14... Qxe5 {[%clk 0:01:47.4]} 15.
Nxe5 {[%clk 0:02:20.8]} 15... f6 {[%clk 0:01:33.5]} 16. Nxc6 {[%clk 0:02:17.6]}
16... Bd7 {[%clk 0:01:31.4]} 17. Na5 {[%clk 0:02:12.8]} 17... f5 {[%clk
0:01:28.8]} 18. b3 {[%clk 0:02:08.7]} 18... Nf6 {[%clk 0:01:27.5]} 19. Re1
{[%clk 0:02:04.1]} 19... Nd5 {[%clk 0:01:09.2]} 20. Re5 {[%clk 0:01:59.4]} 20...
Ne3 {[%clk 0:00:50.9]} 21. Bxe3 {[%clk 0:01:57.3]} 21... fxe3 {[%clk 0:00:46.2]}
22. Re7 {[%clk 0:01:52]} 22... Rd8 {[%clk 0:00:40.9]} 23. Nb7 {[%clk 0:01:46.2]}
1-0

[Event "*** SCC Grand Prix: Titled Tuesday Blitz"]
[Site "Chess.com"]
[Date "2020.08.25"]
[Round "3"]
[White "CarrotsandPizza"]
[Black "arminmusovic"]
[Result "0-1"]
[WhiteElo "2376"]
[BlackElo "2588"]
[TimeControl "180+1"]
[EndTime "10:27:48 PDT"]
[Termination "arminmusovic won by resignation"]

1. e4 {[%clk 0:03:00.9]} 1... c6 {[%clk 0:03:00.5]} 2. d4 {[%clk 0:03:00.8]}
2... d5 {[%clk 0:03:01.4]} 3. Nc3 {[%clk 0:03:01.4]} 3... dxe4 {[%clk 0:03:02]}
4. Nxe4 {[%clk 0:03:02.3]} 4... Nf6 {[%clk 0:03:02.9]} 5. Nxf6+ {[%clk
0:03:02.7]} 5... exf6 {[%clk 0:03:03.8]} 6. Ne2 {[%clk 0:03:02.9]} 6... Bd6
{[%clk 0:03:04.3]} 7. Ng3 {[%clk 0:03:03.3]} 7... O-O {[%clk 0:03:05]} 8. Be2
{[%clk 0:03:03.9]} 8... Re8 {[%clk 0:03:05.9]} 9. O-O {[%clk 0:03:04.4]} 9...
Nd7 {[%clk 0:03:06.5]} 10. c4 {[%clk 0:03:05]} 10... Nf8 {[%clk 0:03:07.4]} 11.
b3 {[%clk 0:03:05.6]} 11... Be6 {[%clk 0:03:06]} 12. Bf3 {[%clk 0:02:58]} 12...
Rc8 {[%clk 0:03:01]} 13. Bb2 {[%clk 0:02:57.1]} 13... Ng6 {[%clk 0:02:58.8]} 14.
Re1 {[%clk 0:02:56.1]} 14... Nh4 {[%clk 0:02:56]} 15. Be4 {[%clk 0:02:55.6]}
15... f5 {[%clk 0:02:52.7]} 16. Bd3 {[%clk 0:02:55.8]} 16... f4 {[%clk
0:01:57.3]} 17. Ne4 {[%clk 0:02:53.6]} 17... f3 {[%clk 0:01:51.1]} 18. Nxd6
{[%clk 0:02:39.8]} 18... Qxd6 {[%clk 0:01:48.2]} 19. g3 {[%clk 0:02:24.2]} 19...
Ng2 {[%clk 0:01:41.8]} 20. Re5 {[%clk 0:02:22.1]} 20... Bg4 {[%clk 0:01:31.9]}
21. Rg5 {[%clk 0:02:16.1]} 21... h5 {[%clk 0:01:21.3]} 22. Bf5 {[%clk
0:01:44.6]} 22... Bxf5 {[%clk 0:01:00.4]} 23. Qxf3 {[%clk 0:01:39.6]} 23... Re1+
{[%clk 0:00:52.8]} 24. Kxg2 {[%clk 0:01:35.9]} 24... Be4 {[%clk 0:00:53]} 25.
Rxe1 {[%clk 0:01:33.7]} 25... Bxf3+ {[%clk 0:00:53.2]} 26. Kxf3 {[%clk
0:01:34.2]} 26... Qf6+ {[%clk 0:00:53.1]} 27. Rf5 {[%clk 0:01:32.5]} 27... Qxf5+
{[%clk 0:00:53.3]} 0-1

[Event "*** SCC Grand Prix: Titled Tuesday Blitz"]
[Site "Chess.com"]
[Date "2020.08.25"]
[Round "3"]
[White "TokChess"]
[Black "Aleksandar-Topalov"]
[Result "1-0"]
[WhiteElo "2428"]
[BlackElo "2267"]
[TimeControl "180+1"]
[EndTime "10:27:49 PDT"]
[Termination "TokChess won by resignation"]

1. Nf3 {[%clk 0:03:00.9]} 1... Nf6 {[%clk 0:02:59.5]} 2. g3 {[%clk 0:03:01]}
2... g6 {[%clk 0:02:59]} 3. Bg2 {[%clk 0:03:01.1]} 3... Bg7 {[%clk 0:02:59.3]}
4. O-O {[%clk 0:03:01.1]} 4... O-O {[%clk 0:02:59.5]} 5. c4 {[%clk 0:03:01.2]}
5... c5 {[%clk 0:02:58.9]} 6. Nc3 {[%clk 0:03:01.3]} 6... Nc6 {[%clk 0:02:59.1]}
7. d4 {[%clk 0:03:00.1]} 7... a6 {[%clk 0:02:54]} 8. dxc5 {[%clk 0:02:51.8]}
8... Qa5 {[%clk 0:02:53.3]} 9. a3 {[%clk 0:02:45.7]} 9... Qxc5 {[%clk
0:02:53.2]} 10. Nd2 {[%clk 0:02:44.4]} 10... d6 {[%clk 0:02:53.1]} 11. b4 {[%clk
0:02:41.2]} 11... Qh5 {[%clk 0:02:51.5]} 12. Bb2 {[%clk 0:02:39.2]} 12... Bh3
{[%clk 0:02:50.7]} 13. f3 {[%clk 0:02:21.7]} 13... Bxg2 {[%clk 0:02:50.4]} 14.
Kxg2 {[%clk 0:02:22]} 14... Rac8 {[%clk 0:02:48.2]} 15. e3 {[%clk 0:01:53.8]}
15... Ne5 {[%clk 0:02:43.1]} 16. Qe2 {[%clk 0:01:53.3]} 16... Rc7 {[%clk
0:02:39]} 17. Rac1 {[%clk 0:01:50]} 17... Rfc8 {[%clk 0:02:38.8]} 18. Na4 {[%clk
0:01:15.3]} 18... Nfg4 {[%clk 0:02:10.9]} 19. h3 {[%clk 0:00:56.5]} 19... Nf6
{[%clk 0:01:58.9]} 20. Nb6 {[%clk 0:00:55.6]} 20... Rd8 {[%clk 0:01:57.1]} 21.
g4 {[%clk 0:00:50.5]} 21... Qh4 {[%clk 0:01:55.5]} 22. f4 {[%clk 0:00:49.2]}
22... Ned7 {[%clk 0:01:42]} 23. Nf3 {[%clk 0:00:47.6]} 23... Qh6 {[%clk
0:01:39.8]} 24. g5 {[%clk 0:00:47.8]} 24... Qh5 {[%clk 0:01:38.9]} 25. gxf6
{[%clk 0:00:46.8]} 25... Nxf6 {[%clk 0:01:39.2]} 26. Bxf6 {[%clk 0:00:43.1]}
26... Bxf6 {[%clk 0:01:38.7]} 27. Nd5 {[%clk 0:00:43.4]} 1-0

[Event "*** SCC Grand Prix: Titled Tuesday Blitz"]
[Site "Chess.com"]
[Date "2020.08.25"]
[Round "3"]
[White "dopolian"]
[Black "paulrusan"]
[Result "1-0"]
[WhiteElo "2475"]
[BlackElo "2193"]
[TimeControl "180+1"]
[EndTime "10:27:54 PDT"]
[Termination "dopolian won by resignation"]

1. Nf3 {[%clk 0:03:00.9]} 1... f5 {[%clk 0:02:59.4]} 2. d3 {[%clk 0:02:58.9]}
2... d6 {[%clk 0:02:58.8]} 3. e4 {[%clk 0:02:56.1]} 3... e5 {[%clk 0:02:58.9]}
4. g3 {[%clk 0:02:54.5]} 4... Be7 {[%clk 0:02:57.2]} 5. Bg2 {[%clk 0:02:54]}
5... Nf6 {[%clk 0:02:57.5]} 6. O-O {[%clk 0:02:52.9]} 6... c5 {[%clk 0:02:56.5]}
7. exf5 {[%clk 0:02:50]} 7... Bxf5 {[%clk 0:02:55.5]} 8. c3 {[%clk 0:02:50.6]}
8... Nc6 {[%clk 0:02:54.9]} 9. d4 {[%clk 0:02:49.2]} 9... cxd4 {[%clk
0:02:53.3]} 10. cxd4 {[%clk 0:02:49.5]} 10... e4 {[%clk 0:02:47.9]} 11. Nh4
{[%clk 0:02:45.9]} 11... Bg4 {[%clk 0:02:48]} 12. f3 {[%clk 0:02:30.6]} 12...
exf3 {[%clk 0:02:47.7]} 13. Nxf3 {[%clk 0:02:28.1]} 13... Qd7 {[%clk 0:02:44.7]}
14. Be3 {[%clk 0:02:21.2]} 14... O-O {[%clk 0:02:38.6]} 15. Nc3 {[%clk
0:02:18.3]} 15... h6 {[%clk 0:02:35.4]} 16. Qb3+ {[%clk 0:02:14.9]} 16... d5
{[%clk 0:02:10.1]} 17. Ne5 {[%clk 0:02:08]} 17... Nxe5 {[%clk 0:02:03.1]} 18.
dxe5 {[%clk 0:02:08.9]} 18... Nh5 {[%clk 0:01:43.5]} 19. Qxd5+ {[%clk
0:02:00.1]} 19... Kh8 {[%clk 0:01:38.1]} 20. Qxd7 {[%clk 0:01:56.3]} 20... Bxd7
{[%clk 0:01:37.6]} 21. Bxb7 {[%clk 0:01:50.8]} 21... Rab8 {[%clk 0:01:37.6]} 22.
Bf3 {[%clk 0:01:50.3]} 22... g6 {[%clk 0:01:33.7]} 23. Bxh6 {[%clk 0:01:44.8]}
23... Rf5 {[%clk 0:01:30.2]} 24. g4 {[%clk 0:01:41.6]} 24... Bc5+ {[%clk
0:01:21.3]} 25. Kg2 {[%clk 0:01:36.8]} 25... Nf4+ {[%clk 0:01:18.8]} 26. Kg3
{[%clk 0:01:30.6]} 26... Rxe5 {[%clk 0:01:08.7]} 27. Bxf4 {[%clk 0:01:29.7]}
27... Bd6 {[%clk 0:01:06.9]} 28. Bxe5+ {[%clk 0:01:29.1]} 28... Bxe5+ {[%clk
0:01:07.2]} 29. Kg2 {[%clk 0:01:25.7]} 29... Rxb2+ {[%clk 0:01:07]} 30. Ne2
{[%clk 0:01:25.9]} 30... Rxe2+ {[%clk 0:01:04.2]} 31. Bxe2 {[%clk 0:01:25.4]}
31... Bxa1 {[%clk 0:01:04.8]} 32. Rxa1 {[%clk 0:01:25.8]} 1-0

[Event "*** SCC Grand Prix: Titled Tuesday Blitz"]
[Site "Chess.com"]
[Date "2020.08.25"]
[Round "3"]
[White "KaterinaMiroshnik"]
[Black "DenLaz"]
[Result "0-1"]
[WhiteElo "2414"]
[BlackElo "2706"]
[TimeControl "180+1"]
[EndTime "10:27:58 PDT"]
[Termination "DenLaz won by resignation"]

1. d4 {[%clk 0:03:00.7]} 1... d5 {[%clk 0:03:00]} 2. Nf3 {[%clk 0:03:00.5]} 2...
Nf6 {[%clk 0:02:59.7]} 3. e3 {[%clk 0:02:58.9]} 3... c6 {[%clk 0:02:59]} 4. Bd3
{[%clk 0:02:59.3]} 4... Bg4 {[%clk 0:02:59]} 5. O-O {[%clk 0:02:59.3]} 5... Nbd7
{[%clk 0:02:58.8]} 6. Nbd2 {[%clk 0:02:59.9]} 6... e5 {[%clk 0:02:58.1]} 7. dxe5
{[%clk 0:02:58.4]} 7... Nxe5 {[%clk 0:02:57.5]} 8. Be2 {[%clk 0:02:59]} 8...
Bxf3 {[%clk 0:02:41]} 9. Nxf3 {[%clk 0:02:59.9]} 9... Bd6 {[%clk 0:02:40.8]} 10.
b3 {[%clk 0:02:53.2]} 10... Ne4 {[%clk 0:02:29.4]} 11. Bb2 {[%clk 0:02:51.2]}
11... Qf6 {[%clk 0:02:28.2]} 12. Kh1 {[%clk 0:02:27.2]} 12... O-O {[%clk
0:02:10.5]} 13. Bd3 {[%clk 0:02:13.8]} 13... Rfe8 {[%clk 0:02:03.8]} 14. Bxe4
{[%clk 0:02:08]} 14... dxe4 {[%clk 0:02:04.7]} 15. Nd4 {[%clk 0:01:59.4]} 15...
Rad8 {[%clk 0:01:55.1]} 16. Qe2 {[%clk 0:01:54.5]} 16... a6 {[%clk 0:01:52.6]}
17. c4 {[%clk 0:01:53.2]} 17... Nd3 {[%clk 0:01:46]} 18. f3 {[%clk 0:01:15.7]}
18... Nxb2 {[%clk 0:01:36.3]} 19. Qxb2 {[%clk 0:01:16.6]} 19... c5 {[%clk
0:01:35.7]} 20. fxe4 {[%clk 0:01:16.1]} 20... Qe5 {[%clk 0:01:36.2]} 21. g3
{[%clk 0:01:09.2]} 21... cxd4 {[%clk 0:01:34.8]} 22. exd4 {[%clk 0:01:09.5]}
22... Qxe4+ {[%clk 0:01:35.2]} 23. Qg2 {[%clk 0:01:09.9]} 23... Qxg2+ {[%clk
0:01:26.7]} 24. Kxg2 {[%clk 0:01:10.8]} 24... g6 {[%clk 0:01:24.4]} 25. Rf2
{[%clk 0:01:07.4]} 25... Re4 {[%clk 0:01:23.3]} 26. Rd1 {[%clk 0:01:06]} 26...
Bc5 {[%clk 0:01:20.3]} 0-1

[Event "*** SCC Grand Prix: Titled Tuesday Blitz"]
[Site "Chess.com"]
[Date "2020.08.25"]
[Round "3"]
[White "tdf98pantani"]
[Black "bsnsun"]
[Result "1-0"]
[WhiteElo "2668"]
[BlackElo "2406"]
[TimeControl "180+1"]
[EndTime "10:28:00 PDT"]
[Termination "tdf98pantani won by resignation"]

1. d4 {[%clk 0:02:57.5]} 1... Nf6 {[%clk 0:02:58.9]} 2. c4 {[%clk 0:02:57.3]}
2... e6 {[%clk 0:02:58.5]} 3. Nf3 {[%clk 0:02:56.5]} 3... d5 {[%clk 0:02:58.6]}
4. Nc3 {[%clk 0:02:53.9]} 4... dxc4 {[%clk 0:02:58]} 5. Qa4+ {[%clk 0:02:52.8]}
5... c6 {[%clk 0:02:54.5]} 6. Qxc4 {[%clk 0:02:52.7]} 6... b5 {[%clk 0:02:54.5]}
7. Qd3 {[%clk 0:02:52.9]} 7... Bb7 {[%clk 0:02:55.1]} 8. e4 {[%clk 0:02:52.8]}
8... a6 {[%clk 0:02:42.2]} 9. Bg5 {[%clk 0:02:52]} 9... Be7 {[%clk 0:02:41]} 10.
e5 {[%clk 0:02:41.5]} 10... Nd5 {[%clk 0:02:40.7]} 11. Ne4 {[%clk 0:02:39.7]}
11... O-O {[%clk 0:02:19.3]} 12. Bxe7 {[%clk 0:02:33]} 12... Qxe7 {[%clk
0:02:18.9]} 13. Nc5 {[%clk 0:02:30.7]} 13... a5 {[%clk 0:02:15.5]} 14. Qe4
{[%clk 0:02:20.5]} 14... Na6 {[%clk 0:02:13.7]} 15. Rc1 {[%clk 0:02:13]} 15...
Nxc5 {[%clk 0:01:53.2]} 16. Rxc5 {[%clk 0:02:12.3]} 16... f5 {[%clk 0:01:53.5]}
17. exf6 {[%clk 0:02:10.8]} 17... Nxf6 {[%clk 0:01:53.2]} 18. Qh4 {[%clk
0:02:05.4]} 18... Rad8 {[%clk 0:01:49.8]} 19. Bd3 {[%clk 0:02:03.9]} 19... Rd5
{[%clk 0:01:16.6]} 20. Bxh7+ {[%clk 0:01:56.4]} 20... Kf7 {[%clk 0:01:08.3]} 21.
Rxd5 {[%clk 0:01:51.5]} 21... exd5+ {[%clk 0:00:58.1]} 22. Ne5+ {[%clk
0:01:49.9]} 22... Ke8 {[%clk 0:00:58.3]} 23. O-O {[%clk 0:01:41.2]} 23... Ne4
{[%clk 0:00:49.8]} 24. Qxe7+ {[%clk 0:01:34.6]} 24... Kxe7 {[%clk 0:00:47.3]}
25. Bxe4 {[%clk 0:01:33.5]} 1-0